Cogmind - Beta 16 @@@ ROGUE MODE // 2025.11.01 @ 19:14:31 Player: Mozco Result: Destroyed by G-47 Trooper with Particle Gun Performance ------------- Evolutions (0) 0 Regions Visited (1) 200 Robots Destroyed (17) 85 Value Destroyed (383) 383 Prototype IDs (0) 0 Alien Tech Used (0) 0 Bonus (0) 0 TOTAL SCORE: 668 Bonus ------- None Cogmind --------- Core Integrity 0/250 Matter 270/300 Energy 250/250 System Corruption 0% Temperature Cool (9) Movement Rolling (105) Ox1 Location -10/Materials Parts ------- > --- POWER (1) -------- Ion Engine > --- PROPULSION (2) --- Wheel Compact Wheel > --- UTILITY (2) ------ Heat Sink High-capacity Storage Unit > --- WEAPON (2) ------- Mining Claw Mining Claw > --- INVENTORY (20) --- Ion Engine Ion Engine Light Treads Light Treads Compact Wheel Medium Storage Unit Machine Analyzer Light Armor Plating EM Pulse Gun Medium Laser Peak State ------------ > --- POWER ------------ Ion Engine > --- PROPULSION ------- Wheel Compact Wheel > --- UTILITY ---------- Heat Sink Small Storage Unit > --- WEAPON ----------- Medium Laser Light Assault Rifle > --- INVENTORY -------- Ion Engine Ion Engine Light Treads Light Treads Aluminum Leg Aluminum Leg Machine Analyzer Small Laser [Rating: 8] Favorites ----------- Power Ion Engine Engine Ion Engine Propulsion Compact Wheel Wheel Compact Wheel Utility Small Storage Unit Device Heat Sink Storage Small Storage Unit Weapon Medium Laser Energy Gun Medium Laser Ballistic Gun Light Assault Rifle Slashing Weapon Mining Claw Build | -11 -10 ------- Run | Yrd Mat Slots Evolved . | . . Power . | . . Propulsion . | . . Utility . | . . Weapon . | . . Parts Attached 16 | 6 10 Power 2 | 1 1 Engine 2 | 1 1 Core . | . . Reactor . | . . Propulsion 4 | 2 2 Treads . | . . Leg . | . . Wheel 4 | 2 2 Hover . | . . Flight . | . . Utility 4 | 1 3 Device 1 | . 1 Storage 3 | 1 2 Processor . | . . Hackware . | . . Protection . | . . Artifact . | . . Weapon 6 | 2 4 Energy Gun 3 | 2 1 Energy Cannon . | . . Ballistic Gun 1 | . 1 Ballistic Cannon . | . . Launcher . | . . Special Weapon . | . . Impact Weapon . | . . Slashing Weapon 2 | . 2 Piercing Weapon . | . . Special Melee Weapon . | . . Unidentified Prototypes . | . . Parts Lost 2 | . 2 Power . | . . Propulsion 1 | . 1 Utility . | . . Weapon 1 | . 1 Highest Loss Streak 2 | . 2 To Critical Strikes . | . . Average Backups 6 | 3 7 Power 1 | . 1 Propulsion 3 | 2 3 Utility . | . 1 Weapon 1 | . 1 Tool/Special . | . . Unused Backups 8 | . 8 Power 1 | . 1 Propulsion 4 | . 4 Utility 2 | . 2 Weapon 1 | . 1 Tool/Special . | . . Average Slot Usage (%) 90 | . 90 Engine 14 | . 14 Wheel 26 | . 26 Device 7 | . 7 Storage 14 | . 14 Energy Gun 22 | . 22 Ballistic Gun 2 | . 2 Slashing Weapon 3 | . 3 Peak Build Rating 8 | 6 8 Average Rating 6 | 4 6 On Entrance 3 | . 6 Avg Prop Armor Cover (%) . | . . Naked Turns . | . . Heaviest Build 50 | 14 50 Greatest Support 32 | 32 32 Greatest Overweight (x) 1 | . 1 Average Overweight (x) . | . . Largest Inventory Capacity 20 | 8 20 Average Capacity 9 | 7 9 Most Carried 10 | 6 10 Average Carried 6 | 3 7 Final Capacity 20 | 8 20 Final Carried 10 | 6 10 Class Distribution -------------------- 100% | Mutant Dominant Class ---------------- Mutant | -10/Materials Resources | -11 -10 ----------- Run | Yrd Mat Matter Collected 340 | 157 183 Remotely . | . . Salvage Created 611 | . 611 Parts 37 | . 37 Haulers Intercepted 2 | . 2 Recyclers Shooed 1 | . 1 Parts Field Recycled . | . . Retrieved Matter . | . . Parts Self-Destructed . | . . Prevented . | . . Parts Restored . | . . Kills | -11 -10 ------- Run | Yrd Mat Combat Hostiles Destroyed 12 | . 12 Melee 1 | . 1 Guns 11 | . 11 Classes Destroyed 6 | . 6 Worker 1 | . 1 Hauler 2 | . 2 Mechanic 1 | . 1 Watcher 1 | . 1 Swarmer 3 | . 3 Grunt 9 | . 9 Best Kill Streak 3 | . 3 Combat Bots Only 3 | . 3 Max Kills in Single Turn 1 | . 1 Gunslinging . | . . Exploded . | . . Melee 1 | . 1 Uniques/NPCs Destroyed . | . . Combat | -11 -10 -------- Run | Yrd Mat Hostile Shots Fired 70 | . 70 Missed 16 | . 16 Hits 54 | . 54 Projectile 54 | . 54 Damage Taken 585 | . 585 Core 263 | . 263 Absorbed by Shields . | . . Core Remaining (%) 100 | 100 . Volleys Fired 63 | 1 62 Largest 2 | 2 2 Hottest 90 | 90 90 Shots Fired 120 | 2 118 Gun 120 | 2 118 Cannon . | . . Launcher . | . . Special . | . . Kinetic 10 | . 10 Thermal 59 | 1 58 Explosive . | . . Electromagnetic 51 | 1 50 Robot Hit Streak 7 | 1 7 Robot Miss Streak 5 | 1 5 Penetration Max . | . . Secondary Targets 2 | . 2 Max Gunslinging Chain 1 | . 1 Shots Hit Robots 72 | 1 71 Core Hits 25 | . 25 Critical Kills . | . . Critical Parts Destroyed . | . . Critical Strikes 4 | . 4 Burn 3 | . 3 Corrupt 1 | . 1 Melee Attacks 14 | . 14 Impact . | . . Slashing 14 | . 14 Piercing . | . . Sneak Attacks 1 | . 1 Combat Hostiles . | . . Follow-up Attacks 3 | . 3 Damage Inflicted 1096 | 12 1084 Guns 797 | 12 785 Cannons . | . . Explosions . | . . Melee 295 | . 295 Ramming 4 | . 4 Kinetic 39 | . 39 Thermal 434 | 12 422 Explosive . | . . Electromagnetic 324 | . 324 Impact . | . . Slashing 295 | . 295 Piercing . | . . Highest Corruption . | . . Average Corruption . | . . Corruption Purged . | . . Corruption Blocked . | . . Overload Shots . | . . Overflow Damage 58 | . 58 Projectiles . | . . Explosions . | . . Melee 58 | . 58 Knockbacks . | . . Impact . | . . Kinetic . | . . Secondary . | . . Self-Inflicted Damage 2 | . 2 Shots . | . . Rammed 1 | . 1 Targets Rammed 1 | . 1 Kicked . | . . Crushed . | . . Highest Temperature 300 | 20 300 Average Temperature 110 | 15 111 Received Heat Transfer 255 | . 255 Effects 2 | . 2 Interference 2 | . 2 Siege Activations . | . . Martial Activations . | . . Shielding Activations . | . . Robots Disrupted . | . . Combat Hostiles . | . . Robots Corrupted . | . . Combat Hostiles . | . . Parts Fried . | . . Impact Corruptions . | . . Robots Melted . | . . Combat Hostiles . | . . Parts Melted 1 | . 1 Heat Transferred 1517 | 37 1480 Parts Sabotaged . | . . Parts Stolen . | . . Parts Stripped . | . . Power Chain Reactions . | . . Alert | -11 -10 ------- Run | Yrd Mat Maximum Alert Level . | . . Low Security (%) 100 | 100 100 Level 1 . | . . Level 2 . | . . Level 3 . | . . Level 4 . | . . Level 5 . | . . High Security . | . . Max Security . | . . Peak Influence 89 | . 89 Initial . | . . Average 39 | . 42 Influence Increases 410 | . 410 Destroy 0b10 Robot/C 240 | . 240 Destroy 0b10 Robot/NC 25 | . 25 Destroy Leader 56 | . 56 Successful Hack 13 | . 13 Select Force Hacks 60 | . 60 Destroy Structure 1 | . 1 Lose Combat Pursuer 15 | . 15 Influence Decreases 326 | . 326 Time Decay 306 | . 306 Lost Part 20 | . 20 Squads Dispatched 4 | . 4 Investigation 3 | . 3 Extermination . | . . Reinforcement 1 | . 1 Assault . | . . Garrison . | . . Intercept . | . . Searches Triggered . | . . Construction Impeded . | . . Haulers Reinforced . | . . Active Scanning Responses . | . . Cargo Convoy Interrupts . | . . Stealth | -11 -10 --------- Run | Yrd Mat Distress Signals 2 | . 2 Communications Jammed . | . . Distress Signals . | . . Times Spotted 19 | . 19 Peak Tracking Total 4 | . 4 Tactical Retreats 1 | . 1 Traps | -11 -10 ------- Run | Yrd Mat Traps Triggered . | . . Indirectly . | . . Trap Hack Attempts . | . . Triggered . | . . Disarmed . | . . Reprogrammed . | . . Reused . | . . Traps Extracted . | . . Installed . | . . Triggered . | . . Machines | -11 -10 ---------- Run | Yrd Mat Machines Disabled . | . . Max in Single Turn . | . . Machines Repaired . | . . Machines Dismantled . | . . Machines Sabotaged . | . . Overloaded Fab Kills . | . . Hacking | -11 -10 --------- Run | Yrd Mat Machines Accessed 7 | . 7 Terminals 5 | . 5 Fabricators . | . . Repair Stations . | . . Recycling Units 2 | . 2 Scanalyzers . | . . Garrison Access . | . . Total Hacks 20 | . 20 Successful 13 | . 13 Failed 7 | . 7 Catastrophic . | . . Database Lockouts . | . . Manual 12 | . 12 Terminals 15 | . 15 Fabricators . | . . Repair Stations . | . . Recycling Units 5 | . 5 Scanalyzers . | . . Garrison Access . | . . Terminal Hacks 4 | . 4 Robot Analysis 2 | . 2 Branch Access Points 1 | . 1 Locate Traps 1 | . 1 Fabricator Hacks . | . . Repair Station Hacks . | . . Recycling Unit Hacks 3 | . 3 Report Inventory 2 | . 2 Retrieve Components 1 | . 1 Scanalyzer . | . . Garrison Access Hacks . | . . Unauthorized Hacks 6 | . 6 Terminals 4 | . 4 Botnet 4 | . 4 Fabricators . | . . Repair Stations . | . . Recycling Units 2 | . 2 Tunnel 2 | . 2 Scanalyzers . | . . Garrison Access . | . . Data Cores Recovered . | . . Used . | . . Hacking Detections 6 | . 6 Full Trace Events 1 | . 1 Feedback Events . | . . Feedback Blocked . | . . Robot Schematics Acquired . | . . Robots Built . | . . Authchips . | . . Time . | . . Total Robot Build Rating . | . . Part Schematics Acquired . | . . Parts Built . | . . Authchips . | . . Time . | . . Total Part Build Rating . | . . Part Studies Acquired . | . . Parts Repaired . | . . Time . | . . Parts Recycled . | . . Recycled Matter . | . . Retrieved Matter . | . . Retrieved Components 7 | . 7 Parts Scanalyzed . | . . Part Schematics Acquired . | . . Parts Damaged . | . . Bothacking | -11 -10 ------------ Run | Yrd Mat Used RIF Installer . | . . Robots Hacked . | . . Non-combat . | . . Combat . | . . Robot Hacks Applied . | . . Relay Couplers Released . | . . Fabnet Peak Effective % . | . . Robots Rewired . | . . Allies Hacked . | . . Hacks Repelled . | . . Allies | -11 -10 -------- Run | Yrd Mat Total Allies . | . . Largest Group . | . . Highest-Rated Group . | . . Highest-Rated Ally . | . . Total Orders . | . . Ally Attacks . | . . Total Damage . | . . Kills . | . . Allies Corrupted . | . . Allies Melted . | . . Intel | -11 -10 ------- Run | Yrd Mat Active Infowar (turns) . | . . Robot Analysis Total 2 | . 2 Derelict Logs Recovered . | . . Drone Launches . | . . Drone Recoveries . | . . Exploration | -11 -10 ------------- Run | Yrd Mat Turns Passed 771 | 54 717 Spaces Moved 517 | 38 479 Core 2 | 2 . Treads . | . . Legs . | . . Wheels 515 | 36 479 Hover . | . . Flight . | . . Fastest Speed 50 | 50 90 Average Speed 97 | 97 97 Slowest Speed 105 | 100 105 Overloaded Moves . | . . Propulsion Burnouts . | . . Robots Hopped . | . . Potential Cave-ins . | . . Cave-ins Triggered . | . . Exploration Rate (%) 35 | 4 66 Regions Visited 1 Branch Regions . Pre-discovered Areas 2 | . 2 Known Exits Taken . | . . Unknown Exits Taken 1 | 1 . Scrap Searched . | . . Spaces Dug . | . . Terrain Destroyed . | . . Melee . | . . Projectile . | . . AOE . | . . Terrain Rammed . | . . Walls Destroyed . | . . Machines Disabled . | . . Actions | -11 -10 --------- Run | Yrd Mat Total 638 | 50 588 Wait 15 | . 15 Move 516 | 37 479 Hop . | . . Pick Up 11 | 6 5 Fast Attach 9 | 6 3 Attach 1 | . 1 Detach . | . . Swap 6 | . 6 Drop 5 | . 5 Fire 63 | 1 62 Melee 11 | . 11 Ram 1 | . 1 Kick . | . . Crush . | . . Escape Stasis . | . . Rewire . | . . Trap . | . . Miscellaneous . | . . Route ------- -11/Scrapyard -10/Materials (discovered 4 exits: [*Mat x2] / *Min x2) History --------- Turn | Location | Event 25 | -11/Scrapyard | Discovered new exit (range 15) 55 | -11/Scrapyard | Entered Materials 240 | -10/Materials | Identified exit to Mines 277 | -10/Materials | Discovered new exit (range 4) 315 | -10/Materials | Build established: Mutant 356 | -10/Materials | Core integrity fell below 50% 582 | -10/Materials | Core integrity fell below 20% 645 | -10/Materials | Discovered new exit (range 8) 772 | -10/Materials | Destroyed by G-47 Trooper with Particle Gun Last Messages --------------- 00662_ Acquired 20 matter. 00666_ K-01 Serf collects debris. 00676_ A-02 Transporter destroyed. 00677_ K-01 Serf collects debris. 00678_ ALERT: Hostiles spotted, dispatching reinforcements to Terminal M002. 00681_ K-01 Serf collects debris. 00687_ W-16 Scout sends out distress signal. 00687_ Dropped Sml. Laser. 00688_ Acquired Mining Claw. 00689_ Dropped Sml. Storage Unit. 00691_ Acquired Mining Claw. 00700_ Sneak attack on O-16 Technician. 00700_ Destroyed Datajack. 00700_ Destroyed Lgt. Ion Engine. 00719_ Mining Claw follow-up attack on G-34 Mercenary. 00722_ Destroyed Sml. Laser. 00737_ K-01 Serf collects debris. 00768_ Mining Claw follow-up attack on G-34 Mercenary. 00768_ G-34 Mercenary destroyed. Map ----- +----------------------------------------------------+ | ?????????????????????????????????????????????????? | | ?????????????????????????????????????????????????? | | ?????????????????????????????????????????????????? | | ?????????????????????????????????????????????????? | | ??????????????+##????????????????????????????????? | | ????????????? ????? ?????????????????????????? | | ????????????? ??? ??????????????????????????? | | ????????????? """"" "??????????????????????????? | | ????????????# ""T"" "??????????????????????????? | | ????????????# "??????????????????????????? | | #???????????# ???????????????????????????? | | #??????????## ????????????????????????????? | | #??????????# """ ????????????????????????????? | | ############ """ ""?????????????????????????? | | # + """ """ ???????????????????????? | | # T # =%= * ?????????????????????? | | # # !%= %= ?????????????????????? | | # """"" # ## ######??????????####????????????? | | # """"" # ## #?????????????? ???????????? | | + """"" # ## #??????????????""" ??????????? | | # """"" + ############## """ ??????????? | | # """"" # */! # """ #?????????? | | # """"" # [!%/ + """ #?????????? | | # """"" # = ! [!k # """ #?????????? | | # # ##############g#### ??????????? | | ######### #?????????# @% #?? ! #?????????? | | # ########??# #?? /?????????? | | """ """ # # """ #??# "" #???#######?????????? | | """ """ + # ["Y" #??# "T #???????????????????? | | """ """%# # !==#??# "" #???????????????????? | | !!* # [+ !!! =#??# #???????????????????? | | %!= # =%# ! #??########???????????????????? | | ##+###### # #?????????????????????????????? | | ## #????# ########?????????????????????????????? | | ## #??? #????????????????????????????????##### | | ## ##?< #????????????????????????????????# | | # # #????????????????????????????????# ^ | | # ####### #????????#########???????????????# ^ | | + #?????# #????????# #???????????????# | | # #?##### #????????# #???????????????# " | | # # ## #????????# ! #?????????######## %" | | # # ## #????????# #?????????# # =" | | # + ## #????????# #?????????# # | | # # ## #????????# #?????????# + | | # # ## ##???????# #?????????# """ # " | | # #? # #???????# " #?????????# """ # " | | # #? # #???????# T #?????????# """ # " | | # #?? / /???????# " #?????????######## | | # #?? # #???????# #######??????????# | | # ###### #############+### #??????????# " | +----------------------------------------------------+ Best States ------------- Heat Dissipation 35 Energy Generation 10 Energy Capacity 250 Matter Stores 300 Matter Capacity 300 Sight Range 16 Terrain Scan Density 10 Evasion (%) 42 Item Schematics ----------------- None Robot Schematics ------------------ None Fabricated ------------ Nothing Repaired ---------- Nothing Studied --------- None Alien Tech Used ----------------- None Achievements -------------- None Challenges ------------ None Game ------ Seed DeflectorTechMount Manual? 0 Play Time 00:12:39 Cumulative 187.1 hours Start 2025.11.01 @ 19:03:27 End 2025.11.01 @ 19:14:31 Sessions 1 Manual Loads 0 Difficulty Rogue Special Mode None Game No. 196 Rogue 192 Adventurer 3 Explorer 1 Win Type - Total 1 Types 1/0/0/0/0/0/0/0/0/0 Lore% 67 Gallery% 70 Achievement% 47 Wizard Run 0 Options --------- Layout 0 ASCII 0 Keyboard 0 Movement Mouse Keybinds 0 Fullscreen 2 Font 18/SmallcapsGlow Map View 76x50 Zoom Use 0% Tactical HUD 1 Map Filters NONE Filters NONE Steam 1 RUN: 1d352ae4-9d80-451b-8041-7b136cd827ef